bitfinex/quotes_SOLUSD_20251024
["timestamp","ask_amount","ask_price","bid_price","bid_amount"]
[1761317158007,2.28238855,190.87,190.81,25.16238855]
[1761317158200,2.78238855,190.87,190.81,25.16238855]
[1761317158390,2.78238855,190.87,190.82,5.24054082]
[1761317158591,0.5,190.87,190.82,5.24054082]
[1761317158796,2.78238855,190.89,190.83,2.28238855]
[1761317159194,2.78238855,190.88,190.82,21.32428142]
[1761317160189,2.28238855,190.88,190.82,5.24054082]
[1761317160390,37.04,190.88,190.82,7.52292937]
[1761317160710,37.54,190.88,190.82,8.22292937]
[1761317160913,0.5,190.88,190.82,7.52292937]
[1761317161109,2.78238855,190.88,190.82,7.52292937]
[1761317161301,2.78238855,190.88,190.82,8.22292937]
[1761317161626,2.78238855,190.88,190.82,21.32428142]
[1761317161815,0.5,190.88,190.82,21.32428142]
[1761317161986,2.78238855,190.88,190.82,21.32428142]
[1761317162801,2.28238855,190.88,190.82,20.62428142]
[1761317162998,0.5,190.87,190.82,20.62428142]
[1761317164499,8.02168913,190.87,190.82,5.24054082]
[1761317164699,2.78238855,190.86,190.8,7.52347869]
[1761317165107,2.28238855,190.84,190.79,5.2413037]
[1761317165308,2.78238855,190.85,190.79,5.2413037]
[1761317165493,0.5,190.84,190.79,5.2413037]
[1761317165690,0.5,190.84,190.77,0.7]
[1761317165900,2.28238855,190.8,190.74,2.98238855]
[1761317166198,0.5,190.8,190.74,5.9427313]
[1761317166415,37.02,190.83,190.77,2.28238855]
[1761317166416,8.02278914,190.83,190.77,2.28238855]
[1761317166598,2.78238855,190.86,190.8,2.28238855]
[1761317166803,37.02,190.85,190.79,2.28238855]
[1761317167024,37.52,190.85,190.8,2.28238855]
[1761317167613,37.52,190.85,190.8,2.98238855]
[1761317168212,37.02,190.85,190.82,2.28238855]
[1761317168401,0.5,190.87,190.83,5.2402662]
[1761317168604,2.28238855,190.86,190.81,5.24056766]
[1761317168811,2.28238855,190.85,190.81,5.24056766]
[1761317169150,2.28238855,190.85,190.79,5.24136485]
[1761317169500,0.5,190.84,190.79,5.24136485]
[1761317169709,2.28238855,190.81,190.73,0.8]
[1761317169906,2.28238855,190.81,190.74,5.2427388]
[1761317170112,2.78238855,190.81,190.75,2.28238855]
[1761317170527,2.28238855,190.76,190.73,0.1]
[1761317170702,2.28238855,190.74,190.73,0.1]
[1761317171022,2.28238855,190.74,190.69,0.1]
[1761317171319,37.02,190.75,190.69,0.1]
[1761317171320,2.28238855,190.7,190.69,0.1]
[1761317171922,2.28238855,190.71,190.69,0.1]
[1761317172502,2.28238855,190.7,190.69,0.1]
[1761317173396,2.28238855,190.7,190.69,5.34411348]
[1761317173808,2.28238855,190.71,190.69,5.34411348]
[1761317174024,22.88,190.76,190.7,0.7]
[1761317174320,2.28238855,190.71,190.69,0.1]
[1761317174500,2.28238855,190.7,190.69,0.1]
[1761317175011,7.92622703,190.7,190.69,0.1]
[1761317176425,10.20861558,190.7,190.69,0.1]
[1761317176808,7.92622703,190.7,190.69,0.1]
[1761317177122,10.20861558,190.7,190.69,0.1]
[1761317177497,21.08509079,190.7,190.69,0.1]
[1761317177998,33.75647521,190.67,190.66,0.1]
[1761317178194,73.07886376,190.67,190.66,0.1]
[1761317178427,1.99999999,190.66,190.65,0.1]
[1761317178722,1.99999999,190.66,190.6,0.1]
[1761317178723,10.87647521,190.61,190.6,0.1]
[1761317178923,55.84517822,190.61,190.6,0.1]
[1761317179164,16.52278967,190.61,190.6,0.1]
[1761317179425,62.20238855,190.61,190.6,0.1]
[1761317180216,59.92,190.61,190.6,0.1]
[1761317180444,2.28238855,190.63,190.6,5.34657008]
[1761317180753,37.04,190.62,190.6,5.34657008]
[1761317180952,37.04,190.62,190.6,0.1]
[1761317181336,37.04,190.62,190.6,6.00645944]
[1761317181855,37.04,190.62,190.6,5.34645944]
[1761317182021,37.04,190.62,190.6,6.00645944]
[1761317182426,37.04,190.66,190.61,0.66]
[1761317182950,37.04,190.66,190.61,5.90755924]
[1761317183455,37.04,190.66,190.62,5.90603924]
[1761317183666,37.04,190.66,190.62,11.15359848]
[1761317184126,37.04,190.66,190.62,5.90603924]
[1761317184326,37.04,190.66,190.62,5.24603924]
[1761317184527,37.04,190.66,190.62,0.66]
[1761317185348,37.04,190.66,190.62,5.90577811]
[1761317185656,37.04,190.66,190.61,5.24755924]
[1761317186130,37.04,190.66,190.61,0.66]
[1761317186445,37.04,190.66,190.61,5.90755924]
[1761317187348,37.04,190.66,190.63,5.24576404]
[1761317188223,37.04,190.66,190.63,5.90576404]
[1761317188841,103.3,190.71,190.65,5.24755924]
[1761317189038,37.06,190.7,190.65,5.24755924]
[1761317189238,37.06,190.7,190.66,0.66]
[1761317189448,37.06,190.7,190.67,5.24466355]
[1761317189830,42.30755924,190.7,190.67,5.24466355]
[1761317190231,5.64755924,190.69,190.65,5.24495001]
[1761317190951,7.9727445,190.69,190.65,5.24495001]
[1761317191250,7.9727445,190.69,190.63,13.87830346]
[1761317191755,37.06,190.7,190.63,26.33271357]
[1761317191934,7.9727445,190.72,190.66,7.9727445]
[1761317192139,37.04,190.71,190.66,7.9727445]
[1761317192333,37.04,190.71,190.67,0.66]
[1761317192840,37.04,190.71,190.63,18.35996907]
[1761317192841,7.9727445,190.68,190.63,18.35996907]
[1761317193042,37.04,190.67,190.64,0.66]
[1761317193459,37.04,190.67,190.63,5.24555896]
[1761317193665,45.0127445,190.67,190.63,5.24555896]
[1761317193841,7.9727445,190.65,190.63,5.24555896]
[1761317194038,37.44,190.67,190.63,5.24555896]
[1761317194354,7.9727445,190.66,190.63,5.24555896]
[1761317194752,23.28,190.72,190.64,0.66]
[1761317194928,7.9727445,190.69,190.64,0.66]
[1761317195558,7.9727445,190.69,190.64,5.90527674]
[1761317195761,37.44,190.71,190.64,5.90527674]
[1761317196057,7.9727445,190.69,190.64,5.90527674]
[1761317196567,37.04,190.68,190.65,8.6327445]
[1761317196853,37.04,190.68,190.65,0.66]
[1761317197045,37.04,190.68,190.66,0.66]
[1761317197250,7.9727445,190.71,190.66,0.66]
[1761317197557,7.9727445,190.72,190.68,5.2443885]
[1761317197765,37.04,190.71,190.68,5.2443885]
[1761317198141,45.0127445,190.71,190.68,5.2443885]
[1761317198338,45.0127445,190.71,190.68,5.9043885]
[1761317198560,37.04,190.7,190.67,5.24466355]
[1761317199059,45.0127445,190.7,190.65,5.24497862]
[1761317199233,45.0127445,190.7,190.65,19.01801297]
[1761317199433,7.9727445,190.69,190.65,19.01801297]
[1761317200033,7.9727445,190.69,190.65,18.35801297]
[1761317200233,7.9727445,190.69,190.66,0.66]
[1761317200453,7.9727445,190.68,190.65,5.24497862]
[1761317200765,7.9727445,190.68,190.63,22.88]
[1761317200766,7.9727445,190.68,190.63,5.24576404]
[1761317200936,7.9727445,190.67,190.63,5.24576404]
[1761317201135,37.04,190.66,190.63,5.90576404]
[1761317201338,37.04,190.66,190.64,0.66]
[1761317201558,7.9727445,190.69,190.64,0.66]
[1761317201756,37.04,190.66,190.64,8.6327445]
[1761317201959,7.9727445,190.7,190.64,8.6327445]
[1761317201960,37.04,190.67,190.64,8.6327445]
[1761317202162,37.04,190.67,190.64,0.66]
[1761317202345,37.04,190.67,190.65,5.24521374]
[1761317202937,37.04,190.67,190.65,5.90521374]
[1761317203858,37.04,190.67,190.65,5.24521374]
[1761317204054,37.04,190.67,190.65,5.90521374]
[1761317204634,5.64364427,190.71,190.65,5.90521374]
[1761317204839,40.61712804,190.7,190.65,5.90521374]
[1761317205239,3.57712804,190.69,190.65,5.90521374]
[1761317205439,37.04,190.68,190.65,5.90521374]
[1761317205936,37.04,190.68,190.64,5.24548887]
[1761317206160,37.04,190.68,190.64,5.90548887]
[1761317206353,37.04,190.68,190.65,0.66]
[1761317206560,37.04,190.68,190.65,4.23712804]
[1761317206740,37.04,190.68,190.66,0.66]
[1761317207140,37.04,190.68,190.66,4.23712804]
[1761317207345,37.04,190.68,190.67,0.66]
[1761317207569,37.04,190.68,190.67,4.23712804]
[1761317207749,37.04,190.71,190.67,4.23712804]
[1761317207957,37.04,190.71,190.69,5.24411348]
[1761317208254,37.04,190.71,190.68,5.24436605]
[1761317208456,37.04,190.71,190.68,5.90436605]
[1761317208665,37.04,190.71,190.68,5.24436605]
[1761317208961,37.04,190.71,190.68,5.90436605]
[1761317209343,37.04,190.71,190.68,19.01533731]
[1761317209549,37.04,190.71,190.69,0.72]
[1761317209863,37.04,190.71,190.68,19.07533731]
[1761317210040,37.04,190.71,190.68,18.35533731]
[1761317210244,37.04,190.71,190.69,0.72]
[1761317211060,37.04,190.71,190.7,5.24383848]
[1761317212475,37.04,190.71,190.7,5.96383848]
[1761317212654,37.04,190.71,190.7,5.24383848]
[1761317213170,37.04,190.71,190.7,0.72]
[1761317213950,37.04,190.71,190.69,5.24411348]
[1761317214256,37.04,190.72,190.69,5.96411348]
[1761317216960,37.04,190.72,190.68,18.35535976]
[1761317217161,37.04,190.72,190.7,0.67]
[1761317217367,37.04,190.72,190.69,0.67]
[1761317218653,37.02,190.72,190.69,0.67]
[1761317219062,37.02,190.72,190.7,5.24383848]
[1761317219258,37.02,190.72,190.65,13.11244936]
[1761317219259,3.97712804,190.71,190.65,13.11244936]
[1761317219475,3.57712804,190.69,190.64,23.55]
[1761317219660,3.57712804,190.69,190.65,5.91521374]
[1761317219971,37.02,190.7,190.65,22.60537613]
[1761317220178,0.4,190.76,190.69,3.57712804]
[1761317220396,4.27397049,190.8,190.66,0.67]
[1761317220397,3.57712804,190.73,190.66,0.67]
[1761317220601,3.57712804,190.7,190.65,18.35824809]
[1761317220777,5.24219973,190.76,190.62,5.24603924]
[1761317220778,3.57712804,190.67,190.62,5.24603924]
[1761317220966,23.28,190.73,190.61,5.24628308]
[1761317220967,40.59712804,190.66,190.61,5.24628308]
[1761317221268,37.02,190.65,190.61,5.24628308]
[1761317221466,37.02,190.65,190.61,5.91628308]
[1761317221774,37.02,190.65,190.62,0.67]
[1761317222090,40.59712804,190.65,190.61,0.67]
[1761317222387,3.57712804,190.62,190.6,0.1]
[1761317222561,40.59712804,190.61,190.6,0.1]
[1761317223086,46.2434425,190.61,190.6,0.1]
[1761317223855,57.11991771,190.61,190.6,0.1]
[1761317224055,60.69704575,190.61,190.6,0.1]
[1761317224486,57.11991771,190.61,190.6,0.1]
[1761317224949,60.69704575,190.61,190.6,0.1]
[1761317225149,57.11991771,190.61,190.6,0.1]
[1761317225786,53.54278967,190.61,190.6,0.1]
[1761317226101,60.69704575,190.61,190.6,0.1]
[1761317226261,22.88,190.57,190.49,0.1]
[1761317226466,48.29647521,190.56,190.49,0.1]
[1761317226692,3.57712804,190.52,190.49,0.1]
[1761317226898,37.04,190.51,190.49,0.1]
[1761317227462,3.57712804,190.54,190.5,0.67]
[1761317227668,37.04,190.53,190.5,4.24712804]
[1761317227868,37.04,190.52,190.5,4.24712804]
[1761317228090,37.04,190.52,190.49,5.3495655]
[1761317228301,37.04,190.52,190.49,0.77]
[1761317228469,37.04,190.52,190.49,6.01960073]
[1761317229102,37.04,190.52,190.5,5.91914524]
[1761317229768,37.04,190.52,190.49,5.34960319]
[1761317229967,37.04,190.52,190.49,0.1]
[1761317230193,3.57712804,190.51,190.49,0.1]
[1761317230403,3.97712804,190.51,190.49,0.1]
[1761317230698,45.86596666,190.52,190.49,0.1]
[1761317231108,3.57712804,190.53,190.49,0.1]
[1761317231275,37.04,190.52,190.49,0.1]
[1761317231601,37.04,190.52,190.49,6.01950903]
[1761317231977,3.57712804,190.54,190.49,0.77]
[1761317232182,40.61712804,190.53,190.49,6.01955604]
[1761317232492,37.04,190.53,190.49,6.01955604]
[1761317233004,40.61712804,190.53,190.49,6.01955604]
[1761317233208,37.04,190.53,190.49,6.01955604]
[1761317233412,37.04,190.52,190.49,6.01955604]
[1761317233708,3.57712804,190.58,190.51,3.57712804]
[1761317233914,10.71417322,190.69,190.49,5.34955604]
[1761317233915,3.57712804,190.54,190.49,5.34955604]
[1761317234218,40.61712804,190.53,190.49,5.34955604]
[1761317234385,37.04,190.53,190.49,6.01955604]
[1761317234591,37.04,190.53,190.5,0.67]
[1761317235504,37.04,190.53,190.5,5.91907895]
[1761317238479,40.61712804,190.53,190.5,5.91907895]
[1761317238682,3.57712804,190.52,190.49,0.1]
[1761317238987,3.57712804,190.51,190.49,0.1]
[1761317239182,37.04,190.5,190.49,0.1]
[1761317239785,37.04,190.5,190.49,5.3496194]
[1761317240184,37.04,190.5,190.49,6.0096194]
[1761317240372,37.04,190.5,190.49,0.76]
[1761317240591,0.4,190.6,190.5,5.24934383]
[1761317240803,37.44,190.59,190.5,5.24934383]
[1761317241025,3.57712804,190.56,190.51,0.66]
[1761317241207,42.73313101,190.61,190.52,3.57712804]
[1761317241392,59.92,190.6,190.54,3.57712804]
[1761317241594,37.04,190.6,190.56,3.57712804]
[1761317241826,37.04,190.6,190.56,8.82476369]
[1761317242001,28.12610849,190.62,190.56,9.48476369]
[1761317242205,37.04,190.61,190.56,9.48476369]
[1761317242428,37.04,190.61,190.56,5.90763565]
[1761317242716,37.44,190.61,190.55,5.24795276]
[1761317243124,37.44,190.61,190.55,8.8250808]
[1761317243423,37.44,190.61,190.55,5.24795276]
[1761317243624,42.28637185,190.61,190.55,9.4850808]
[1761317243832,37.04,190.61,190.55,8.8250808]
[1761317243991,37.04,190.61,190.56,4.23712804]
[1761317244399,37.04,190.61,190.57,0.66]
[1761317244806,37.04,190.6,190.57,0.66]
[1761317245014,37.04,190.6,190.54,9.48535615]
[1761317245621,42.28663499,190.6,190.54,9.48535615]
[1761317246317,42.28663499,190.6,190.54,0.66]
[1761317246523,42.28663499,190.6,190.53,3.57712804]
[1761317246524,3.57712804,190.58,190.5,13.78288182]
[1761317246741,37.04,190.57,190.5,27.11712804]
[1761317246904,37.04,190.57,190.5,32.36646339]
[1761317247396,41.01712804,190.57,190.5,9.48646339]
[1761317247591,3.97712804,190.56,190.5,5.24933535]
[1761317247930,3.57712804,190.54,190.49,0.1]
[1761317248137,37.04,190.53,190.49,0.1]
[1761317248734,37.04,190.53,190.49,6.00959103]
[1761317249130,37.04,190.53,190.49,0.76]
[1761317249329,37.04,190.53,190.49,0.1]
[1761317249510,3.97712804,190.52,190.49,0.1]
[1761317249715,42.288651,190.53,190.49,0.1]
[1761317249920,45.86577904,190.53,190.49,0.1]
[1761317250147,46.26577904,190.53,190.49,0.1]
[1761317250347,37.04,190.53,190.49,0.76]
[1761317250512,37.04,190.53,190.49,6.00947792]
[1761317251047,37.04,190.53,190.5,0.66]
[1761317252130,37.04,190.53,190.5,5.90933117]
[1761317252332,30.42075614,190.56,190.5,5.90933117]
[1761317252551,22.16,190.56,190.51,0.66]
[1761317252716,5.24550855,190.64,190.55,25.17306232]
[1761317252922,19.05923074,190.64,190.58,2.29306232]
[1761317253144,2.29306232,190.62,190.54,0.66]
[1761317253441,2.29306232,190.58,190.53,22.88]
[1761317253618,37.04,190.57,190.53,25.17306232]
[1761317253930,37.04,190.57,190.53,23.54]
[1761317254129,42.2876701,190.57,190.53,25.17306232]
[1761317254306,42.2876701,190.57,190.54,0.66]
[1761317254912,2.99306232,190.56,190.51,5.24895562]
[1761317255136,2.29306232,190.55,190.5,5.24934383]
[1761317255323,0.7,190.55,190.5,5.90934383]
[1761317256042,7.54090055,190.56,190.51,5.90902824]
[1761317256245,44.5805029,190.57,190.52,0.66]
[1761317256542,2.29306232,190.57,190.52,0.66]
[1761317256745,37.04,190.56,190.52,0.66]
[1761317257041,37.04,190.55,190.52,0.66]
[1761317257757,37.04,190.55,190.53,5.24851729]
[1761317257916,37.04,190.55,190.53,7.54157961]
[1761317258111,37.04,190.55,190.54,0.66]
[1761317258324,37.04,190.58,190.54,2.95306232]
[1761317258845,37.04,190.58,190.55,0.66]
[1761317259629,37.04,190.58,190.56,5.24769101]
[1761317260642,37.04,190.58,190.55,5.90796098]
[1761317260840,37.04,190.58,190.55,19.02787701]
[1761317261042,37.04,190.58,190.56,2.95306232]
[1761317261218,103.3,190.64,190.57,2.29306232]
[1761317261219,105.59306232,190.64,190.57,2.29306232]
[1761317261557,37.04,190.63,190.6,2.29306232]
[1761317261856,5.00783724,190.75,190.64,22.88]
[1761317262149,39.33306232,190.74,190.67,2.29306232]
[1761317262318,2.29306232,190.72,190.66,2.29306232]
[1761317262516,2.29306232,190.72,190.67,0.66]
[1761317262752,5.24489532,190.73,190.67,0.66]
[1761317263158,5.24489532,190.73,190.67,5.90489532]
[1761317263660,37.74,190.74,190.68,5.2443885]
[1761317263859,5.24489532,190.73,190.68,5.2443885]
[1761317264058,37.04,190.74,190.69,5.90489532]
[1761317264366,37.04,190.74,190.71,5.24489532]
[1761317264540,37.04,190.74,190.7,5.90489532]
[1761317264735,37.04,190.74,190.71,0.66]
[1761317264940,37.04,190.74,190.71,5.90489532]
[1761317265156,37.04,190.74,190.72,5.24489532]
[1761317265355,37.02,190.77,190.72,5.90489532]
[1761317265556,37.02,190.77,190.68,18.35535976]
[1761317265557,37.02,190.77,190.73,5.90489532]
[1761317265726,37.02,190.77,190.74,5.2427388]
[1761317265930,37.02,190.77,190.74,5.9027388]
[1761317266350,37.02,190.77,190.74,19.00958581]
[1761317266560,37.02,190.77,190.75,0.66]
[1761317267048,37.02,190.77,190.75,5.90489532]
[1761317267251,0.2,190.81,190.76,0.66]
[1761317267430,37.02,190.8,190.76,0.66]
[1761317267859,37.02,190.8,190.77,5.24191434]
[1761317269272,37.02,190.8,190.76,5.24218913]
[1761317271567,37.73,190.8,190.76,5.24218913]
[1761317272664,37.73,190.8,190.76,5.96218913]
[1761317273173,5.95489532,190.79,190.74,5.24249618]
[1761317273345,5.95489532,190.79,190.69,5.24489532]
[1761317273346,5.24489532,190.75,190.69,5.24489532]
[1761317273671,5.24489532,190.75,190.68,0.72]
[1761317273672,5.24489532,190.74,190.68,0.72]
[1761317273863,5.24489532,190.74,190.68,5.96489532]
[1761317274362,42.95489532,190.75,190.69,0.72]
[1761317274671,42.95489532,190.75,190.7,5.24383848]
[1761317275135,42.95489532,190.75,190.68,13.11058762]
[1761317275136,5.95489532,190.74,190.68,5.24489532]
[1761317275336,5.95489532,190.74,190.67,5.24462377]
[1761317275337,0.71,190.74,190.67,5.24462377]
[1761317275558,5.24489532,190.71,190.67,5.24462377]
[1761317275752,42.24489532,190.71,190.67,5.24462377]
[1761317275953,5.95489532,190.7,190.67,5.24462377]
[1761317276371,5.95489532,190.7,190.66,5.24493863]
[1761317276885,0.71,190.7,190.66,5.24493863]
[1761317277175,0.71,190.7,190.65,11.21005938]
[1761317277567,5.95489532,190.7,190.65,5.24516406]
[1761317277940,0.69,190.69,190.65,5.24516406]
[1761317278148,5.93489532,190.7,190.65,5.95516406]
[1761317278346,5.24489532,190.7,190.64,28.12548887]
[1761317278577,5.24489532,190.7,190.64,28.83548887]
[1761317278780,5.93489532,190.7,190.64,28.83548887]
[1761317278954,5.93489532,190.69,190.64,41.23921106]
[1761317279153,5.93489532,190.69,190.64,18.35921106]
[1761317279383,0.69,190.68,190.64,18.35921106]
[1761317279745,0.69,190.68,190.64,5.24548887]
[1761317280780,0.69,190.68,190.63,5.24573444]
[1761317280985,5.24489532,190.69,190.63,10.49062976]
[1761317281174,5.24489532,190.69,190.63,11.20062976]
[1761317281473,5.24489532,190.7,190.64,0.71]
[1761317281764,37.0,190.71,190.65,5.24489532]
[1761317281972,37.0,190.71,190.64,5.95489532]
[1761317281973,37.69,190.71,190.64,5.95489532]
[1761317282151,5.24489532,190.7,190.64,0.71]
[1761317282663,42.93489532,190.71,190.64,5.95489532]
[1761317282969,5.93489532,190.7,190.65,5.24521374]
[1761317283378,5.24489532,190.67,190.61,28.12489532]
[1761317283568,42.93366022,190.71,190.62,5.95489532]
[1761317283759,5.24489532,190.7,190.63,5.24489532]
[1761317283962,5.24489532,190.7,190.63,5.95489532]
[1761317284160,5.93489532,190.7,190.63,5.95489532]
[1761317284458,5.93489532,190.7,190.63,5.24489532]
[1761317284778,2.97944675,190.7,190.64,0.71]
[1761317284967,0.69,190.7,190.65,5.24521374]
[1761317285347,2.97944675,190.7,190.65,5.95521374]
[1761317285552,39.97944675,190.7,190.65,5.95521374]
[1761317285970,23.57,190.73,190.66,0.71]
[1761317286276,37.69,190.75,190.69,2.28944675]
[1761317286679,37.69,190.75,190.68,2.99944675]
[1761317286869,37.69,190.75,190.69,2.28944675]
[1761317287175,37.69,190.75,190.7,5.24383848]
[1761317287380,39.97944675,190.75,190.7,5.24383848]
[1761317287554,39.28944675,190.75,190.7,5.95383848]
[1761317287760,39.97944675,190.75,190.7,5.95383848]
[1761317287975,37.0,190.75,190.71,0.71]
[1761317288477,37.0,190.75,190.71,2.99944675]
[1761317288662,37.0,190.75,190.71,0.71]
[1761317288980,37.0,190.75,190.7,18.3534347]
[1761317288981,37.0,190.75,190.72,0.71]
[1761317289362,37.0,190.75,190.7,10.48593395]
[1761317289560,37.0,190.75,190.71,0.71]
[1761317290284,37.0,190.75,190.71,5.952152]
[1761317290775,37.0,190.75,190.72,0.71]
[1761317291094,37.0,190.75,190.72,5.95321307]
[1761317291574,37.0,190.75,190.73,0.71]
[1761317291776,37.0,190.75,190.72,5.95321307]
[1761317292581,37.0,190.75,190.73,0.71]
[1761317293171,37.0,190.75,190.73,5.24284236]
[1761317294590,37.69,190.75,190.7,18.35174822]
[1761317294768,42.932152,190.75,190.7,13.81959622]
[1761317295481,42.242152,190.75,190.71,5.24353516]
[1761317295684,5.932152,190.74,190.71,5.24353516]
[1761317295871,0.69,190.74,190.71,5.24353516]
[1761317296064,42.242152,190.75,190.71,5.24353516]
[1761317296382,5.24356352,190.71,190.65,5.24498079]
[1761317296585,36.98,190.7,190.62,18.36071611]
[1761317296787,42.222152,190.69,190.63,5.952152]
[1761317297575,36.98,190.69,190.65,5.242152]
[1761317297790,36.98,190.69,190.64,0.71]
[1761317297791,42.912152,190.72,190.66,10.48709063]
[1761317297972,5.242152,190.67,190.63,5.24576404]
[1761317298287,36.98,190.68,190.63,5.24576404]
[1761317298465,36.98,190.68,190.63,5.95576404]
[1761317299176,5.242152,190.67,190.63,19.07017415]
[1761317299380,36.98,190.68,190.64,0.71]
[1761317300092,36.98,190.68,190.65,5.24521374]
[1761317300486,42.222152,190.71,190.66,0.69]
[1761317300793,42.922152,190.71,190.66,0.69]
[1761317301884,0.7,190.7,190.65,18.35824809]
[1761317302094,5.942152,190.7,190.65,18.35824809]
[1761317302388,5.242152,190.69,190.65,18.35824809]
[1761317302683,5.242152,190.67,190.63,5.24576404]
[1761317302891,5.242152,190.66,190.63,5.24576404]
[1761317303193,5.242152,190.65,190.63,5.24576404]
[1761317303498,0.7,190.66,190.63,5.24576404]
[1761317303665,0.7,190.65,190.61,5.24605645]
[1761317303864,5.942152,190.65,190.61,5.24605645]
[1761317304066,5.942152,190.65,190.6,18.36304065]
[1761317304314,5.242152,190.63,190.59,22.88]
[1761317304493,0.7,190.64,190.58,5.93710794]
[1761317304494,5.942152,190.64,190.58,5.93710794]
[1761317304803,5.942152,190.64,190.58,11.17925994]
[1761317304978,0.7,190.64,190.59,5.242152]
[1761317305297,5.942152,190.64,190.58,19.05495871]
[1761317305472,5.242152,190.64,190.59,0.69]
[1761317305991,5.242152,190.64,190.6,5.24658971]
[1761317307063,5.242152,190.64,190.6,0.69]
[1761317307886,0.7,190.66,190.6,0.69]
[1761317308070,5.242152,190.66,190.6,5.932152]
[1761317308285,5.242152,190.63,190.58,19.05499107]
[1761317308494,5.942152,190.65,190.59,0.69]
[1761317308700,5.24427502,190.69,190.6,5.242152]
[1761317308879,37.0,190.65,190.61,0.69]
[1761317309309,37.0,190.65,190.62,5.24603924]
[1761317309972,0.7,190.64,190.62,5.24603924]
[1761317310494,42.242152,190.65,190.62,5.24603924]
[1761317310671,39.29060687,190.65,190.62,5.24603924]
[1761317311196,39.99060687,190.65,190.61,5.24631446]
[1761317311592,37.0,190.65,190.61,5.24631446]
[1761317311786,0.7,190.64,190.61,5.24631446]
[1761317311975,2.29060687,190.64,190.61,5.24631446]
[1761317312171,0.7,190.63,190.61,5.24631446]
[1761317312590,2.29060687,190.64,190.61,5.24631446]
[1761317312780,4.27961596,190.64,190.61,5.24631446]
[1761317313090,0.7,190.64,190.6,18.36284125]
[1761317313395,37.0,190.64,190.61,0.69]
[1761317313598,40.57961596,190.64,190.6,18.36284125]
[1761317313898,40.57961596,190.64,190.6,19.05284125]
[1761317314195,41.27961596,190.64,190.6,19.05284125]
[1761317314382,37.7,190.64,190.6,18.36284125]
[1761317314583,0.7,190.63,190.6,5.24658971]
[1761317314976,40.57961596,190.64,190.6,5.93658971]
[1761317314977,37.0,190.64,190.6,5.93658971]
[1761317315182,37.7,190.64,190.6,18.363064]
[1761317315398,0.7,190.63,190.6,5.24658971]
[1761317315604,37.7,190.63,190.59,5.24664571]
[1761317315809,3.57961596,190.62,190.58,5.2470819]
[1761317316013,40.57961596,190.63,190.58,5.2470819]
[1761317316184,37.7,190.63,190.58,5.9370819]
[1761317316386,37.0,190.63,190.6,5.24658971]
[1761317317089,37.0,190.63,190.61,0.69]
[1761317317410,37.0,190.63,190.6,5.24658971]
[1761317317411,37.7,190.63,190.6,5.24658971]
[1761317317895,0.7,190.62,190.58,5.2471403]
[1761317318082,0.7,190.66,190.59,4.26961596]
[1761317318283,37.0,190.65,190.58,21.94460703]
[1761317318597,0.7,190.64,190.58,18.36499107]
[1761317318799,0.7,190.64,190.59,0.69]
[1761317319514,3.57961596,190.62,190.58,5.2471403]
[1761317319810,37.0,190.61,190.58,5.2471403]
[1761317320419,37.0,190.61,190.57,5.24741564]
[1761317321289,37.0,190.61,190.57,5.93741564]
[1761317321839,37.0,190.61,190.55,18.36726746]
[1761317321986,0.7,190.6,190.55,21.94688342]
[1761317322198,0.7,190.6,190.55,18.36726746]
[1761317322518,0.7,190.6,190.55,19.05726746]
[1761317324724,37.0,190.61,190.57,5.24741564]
[1761317325093,5.94544301,190.65,190.58,0.69]
[1761317325298,37.0,190.64,190.58,0.69]
[1761317326024,41.27961596,190.64,190.58,0.69]
[1761317326595,37.7,190.64,190.58,0.69]